fUST/lending_fUST_20241102
["ID","MTS","AMOUNT","RATE_DAILY","PERIOD"]
[341158101,1730484649435,-2060.84,0.00034523,4]
[341158102,1730484649445,-1102.64,0.00034523,4]
[341158103,1730484649455,-500.0,0.00034524,4]
[341158104,1730484649464,-500.0,0.00034524,4]
[341158105,1730484649476,-605.0,0.00034524,4]
[341158106,1730484649486,-500.0,0.00034524,4]
[341158107,1730484649497,-500.0,0.00034524,4]
[341158108,1730484649507,-500.0,0.00034524,4]
[341158109,1730484649517,-500.0,0.00034524,4]
[341158110,1730484649527,-500.0,0.00034524,4]
[341158111,1730484649537,-1794.85,0.00034524,4]
[341158112,1730484649547,-500.0,0.00034524,4]
[341158113,1730484649558,-363.92382026,0.00034524,4]
[341158114,1730484649568,-500.0,0.00034524,4]
[341158115,1730484649577,-8558.61,0.00034524,4]
[341158116,1730484649587,-500.0,0.00034524,4]
[341158117,1730484649597,-249.52931379,0.00034524,4]
[341158118,1730484649606,-500.0,0.00034524,4]
[341158119,1730484649617,-151.0,0.00034524,14]
[341158120,1730484649628,-2140.67,0.00034524,4]
[341158121,1730484649637,-1519.49,0.00034524,4]
[341158122,1730484649647,-1286.34,0.00034524,4]
[341158123,1730484649657,-1203.1,0.00034524,4]
[341158124,1730484649667,-500.0,0.00034525,4]
[341158125,1730484649676,-500.0,0.00034525,4]
[341158126,1730484649685,-500.0,0.00034525,4]
[341158127,1730484649694,-500.0,0.00034525,4]
[341158128,1730484649704,-500.0,0.00034525,4]
[341158129,1730484649713,-500.0,0.00034525,4]
[341158130,1730484649722,-500.0,0.00034525,4]
[341158131,1730484649731,-500.0,0.00034525,4]
[341158132,1730484649742,-500.0,0.00034525,4]
[341158133,1730484649751,-500.0,0.00034525,4]
[341158134,1730484649760,-500.0,0.00034525,4]
[341158135,1730484649769,-500.0,0.00034525,4]
[341158136,1730484649779,-500.0,0.00034525,4]
[341158137,1730484649788,-500.0,0.00034525,4]
[341158138,1730484649797,-500.0,0.00034525,2]
[341158139,1730484649807,-500.0,0.00034525,4]
[341158140,1730484649816,-500.0,0.00034525,4]
[341158141,1730484649826,-1601.74,0.00034525,4]
[341158142,1730484649835,-2786.23,0.00034525,120]
[341158143,1730484649844,-500.0,0.00034525,4]
[341158144,1730484649854,-500.0,0.00034525,4]
[341158145,1730484649863,-500.0,0.00034525,4]
[341158146,1730484649872,-500.0,0.00034525,4]
[341158147,1730484649882,-500.0,0.00034525,4]
[341158148,1730484649891,-500.0,0.00034525,4]
[341158149,1730484649901,-500.0,0.00034525,4]
[341158150,1730484649911,-500.0,0.00034525,4]
[341158151,1730484649920,-353.83149185,0.00034525,4]
[341158152,1730484649930,-500.0,0.00034525,4]
[341158153,1730484649940,-302.1295705,0.00034525,4]
[341158154,1730484649949,-500.0,0.00034525,4]
[341158155,1730484649959,-500.0,0.00034525,4]
[341158156,1730484649968,-151.0,0.00034525,14]
[341158157,1730484649977,-601.1,0.00034525,4]
[341158158,1730484649987,-1254.46,0.00034525,4]
[341158159,1730484649997,-500.0,0.00034525,4]
[341158160,1730484650006,-500.0,0.00034525,4]
[341158161,1730484650016,-500.0,0.00034525,4]
[341158162,1730484650026,-500.0,0.00034525,4]
[341158163,1730484650036,-500.0,0.00034525,4]
[341158164,1730484650046,-500.0,0.00034525,4]
[341158165,1730484650055,-1410.65,0.00034525,4]
[341158166,1730484650066,-606.11,0.00034525,4]
[341158167,1730484650076,-500.0,0.00034525,4]
[341158168,1730484650085,-500.0,0.00034525,4]
[341158169,1730484650096,-500.0,0.00034525,4]
[341158170,1730484650106,-500.0,0.00034525,4]
[341158171,1730484650116,-500.0,0.00034525,4]
[341158172,1730484650125,-500.0,0.00034525,4]
[341158173,1730484650135,-500.0,0.00034525,4]
[341158174,1730484650145,-500.0,0.00034525,4]
[341158175,1730484650155,-500.0,0.00034525,4]
[341158176,1730484650164,-500.0,0.00034525,4]
[341158177,1730484650173,-500.0,0.00034525,4]
[341158178,1730484650183,-500.0,0.00034525,4]
[341158179,1730484650192,-500.0,0.00034525,4]
[341158180,1730484650202,-500.0,0.00034526,4]
[341158181,1730484650212,-500.0,0.00034526,4]
[341158182,1730484650223,-3434.74,0.00034526,4]
[341158183,1730484650234,-1378.35,0.00034526,4]
[341158184,1730484650245,-500.0,0.00034526,4]
[341158185,1730484650254,-1406.68,0.00034526,4]
[341158186,1730484650263,-775.55,0.00034526,4]
[341158187,1730484650273,-500.0,0.00034526,4]
[341158188,1730484650283,-151.0,0.00034527,14]
[341158189,1730484650292,-500.0,0.00034527,4]
[341158190,1730484650301,-449.14192032,0.00034527,4]
[341158191,1730484650311,-500.0,0.00034527,4]
[341158192,1730484650321,-500.0,0.00034527,4]
[341158193,1730484650330,-500.0,0.00034528,4]
[341158194,1730484650339,-500.0,0.00034528,4]
[341158195,1730484650349,-686.42,0.00034528,4]
[341158196,1730484650358,-500.0,0.00034528,4]
[341158197,1730484650367,-595.18356713,0.00034528,4]
[341158198,1730484650376,-500.0,0.00034528,4]
[341158199,1730484650385,-203.06408676,0.00034528,4]
[341158200,1730484650395,-500.0,0.00034528,4]
[341158201,1730484650407,-500.0,0.00034528,4]
[341158202,1730484650416,-500.0,0.00034528,4]
[341158203,1730484650425,-500.0,0.00034528,4]
[341158204,1730484650436,-500.0,0.00034797,4]
[341158205,1730484650445,-1331.61,0.00034797,4]
[341158206,1730484650455,-500.0,0.00034797,4]
[341158207,1730484650464,-500.0,0.00034797,4]
[341158208,1730484650474,-500.0,0.00034797,4]
[341158209,1730484650483,-8598.38,0.00034797,4]
[341158210,1730484650495,-500.0,0.00034797,4]
[341158211,1730484650505,-500.0,0.00034797,4]
[341158212,1730484650515,-10892.51,0.00034797,3]
[341158213,1730484650524,-500.0,0.00034797,4]
[341158214,1730484650534,-2060.84,0.00034797,4]
[341158215,1730484650544,-1102.64,0.00034797,4]
[341158216,1730484650554,-500.0,0.00034798,4]
[341158217,1730484650563,-500.0,0.00034798,4]
[341158218,1730484650573,-605.0,0.00034798,4]
[341158219,1730484650582,-500.0,0.00034798,4]
[341158220,1730484650591,-500.0,0.00034798,4]
[341158221,1730484650601,-500.0,0.00034798,4]
[341158222,1730484650610,-500.0,0.00034798,4]
[341158223,1730484650619,-500.0,0.00034798,4]
[341158224,1730484650629,-1794.85,0.00034798,4]
[341158225,1730484650639,-500.0,0.00034798,4]
[341158226,1730484650648,-500.0,0.00034798,4]
[341158227,1730484650658,-8558.61,0.00034798,4]
[341158228,1730484650667,-500.0,0.00034798,4]
[341158229,1730484650676,-500.0,0.00034798,4]
[341158230,1730484650686,-151.0,0.00034798,14]
[341158231,1730484650697,-2140.67,0.00034798,4]
[341158232,1730484650705,-1519.49,0.00034798,4]
[341158233,1730484650715,-1286.34,0.00034798,4]
[341158234,1730484650724,-1203.1,0.00034798,4]
[341158235,1730484650733,-500.0,0.00034799,4]
[341158236,1730484650743,-500.0,0.00034799,4]
[341158237,1730484650753,-500.0,0.00034799,4]
[341158238,1730484650762,-509.1,0.00034799,4]
[341158239,1730484650772,-500.0,0.00034799,4]
[341158240,1730484650782,-500.0,0.00034799,4]
[341158241,1730484650791,-500.0,0.00034799,4]
[341158242,1730484650801,-500.0,0.00034799,4]
[341158243,1730484650812,-500.0,0.00034799,4]
[341158244,1730484650822,-500.0,0.00034799,4]
[341158245,1730484650833,-500.0,0.00034799,4]
[341158246,1730484650843,-500.0,0.00034799,4]
[341158247,1730484650852,-500.0,0.00034799,4]
[341158248,1730484650861,-500.0,0.00034799,4]
[341158249,1730484650871,-529.61,0.00034799,2]
[341158250,1730484650880,-500.0,0.00034799,4]
[341158251,1730484650890,-500.0,0.00034799,4]
[341158252,1730484650899,-1601.74,0.00034799,4]
[341158253,1730484650910,-2786.23,0.00034799,120]
[341158254,1730484650920,-500.0,0.00034799,4]
[341158255,1730484650931,-500.0,0.00034799,4]
[341158256,1730484650943,-500.0,0.00034799,4]
[341158257,1730484650954,-500.0,0.00034799,4]
[341158258,1730484650963,-613.40454959,0.00034799,4]
[341158259,1730484650973,-500.0,0.00034799,4]
[341158260,1730484650983,-500.0,0.00034799,4]
[341158261,1730484650994,-500.0,0.00034799,4]
[341158262,1730484651003,-500.0,0.00034799,4]
[341158263,1730484651012,-500.0,0.00034799,4]
[341158264,1730484651021,-611.58376219,0.00034799,4]
[341158265,1730484651031,-152.5812,0.00034799,14]
[341158266,1730484651041,-601.1,0.00034799,4]
[341158267,1730484651053,-1254.46,0.00034799,4]
[341158268,1730484651063,-500.0,0.00034799,4]
[341158269,1730484651074,-500.0,0.00034799,4]
[341158270,1730484651085,-500.0,0.00034799,4]
[341158271,1730484651094,-195.61782392,0.00034799,4]
[341158272,1730484651103,-500.0,0.00034799,4]
[341158273,1730484651113,-500.0,0.00034799,4]
[341158274,1730484651123,-1410.65,0.00034799,4]
[341158275,1730484651134,-606.11,0.00034799,4]
[341158276,1730484651143,-500.0,0.00034799,4]
[341158277,1730484651153,-500.0,0.00034799,4]
[341158278,1730484651162,-500.0,0.00034799,4]
[341158279,1730484651172,-500.0,0.00034799,4]
[341158280,1730484651182,-500.0,0.00034799,4]
[341158281,1730484651195,-500.0,0.00034799,4]
[341158282,1730484651205,-500.0,0.00034799,4]
[341158283,1730484651217,-500.0,0.00034799,4]
[341158284,1730484651228,-500.0,0.00034799,4]
[341158285,1730484651238,-500.0,0.00034799,4]
[341158286,1730484651249,-500.0,0.00034799,4]
[341158287,1730484651258,-500.0,0.00034799,4]
[341158288,1730484651269,-500.0,0.00034799,4]
[341158289,1730484651280,-500.0,0.000348,4]
[341158290,1730484651291,-456.80872169,0.000348,4]
[341158291,1730484651311,-43.19127831,0.000348,4]
[341158292,1730484651322,-3434.74,0.000348,4]
[341158293,1730484651332,-1378.35,0.000348,4]
[341158294,1730484651343,-500.0,0.000348,4]
[341158295,1730484651353,-1406.68,0.000348,4]
[341158296,1730484651362,-775.55,0.000348,4]
[341158297,1730484651371,-500.0,0.000348,4]
[341158298,1730484651381,-500.0,0.00034801,4]
[341158299,1730484651390,-383.66079739,0.00034801,4]
[341158300,1730484651400,-500.0,0.00034801,4]
[341158301,1730484651412,-500.0,0.00034802,4]
[341158302,1730484651422,-500.0,0.00034802,4]
[341158303,1730484651431,-686.42,0.00034802,4]
[341158304,1730484651440,-500.0,0.00034802,4]
[341158305,1730484651451,-500.0,0.00034802,4]
[341158306,1730484651461,-151.0,0.00034802,14]
[341158307,1730484651471,-500.0,0.00034802,4]
[341158308,1730484651483,-500.0,0.00034802,4]
[341158309,1730484651497,-500.0,0.00034802,4]
[341158310,1730484651508,-500.0,0.00034802,4]
[341158311,1730484651519,-740.39104188,0.00034888,2]
[341158312,1730484651528,-150.112233,0.000349,20]
[341158313,1730484651537,-604.40090026,0.00034973,5]
[341158314,1730484651547,-2287.83374236,0.00034999,2]
[341158315,1730484651556,-268933.16498955,0.00035,2]
[341158316,1730484651566,-153.160932,0.00035,14]
[341158317,1730484651577,-150.0,0.00035,69]
[341158318,1730484651588,-151.0,0.00035,14]
[341158319,1730484651597,-5000.0,0.00035,20]
[341158320,1730484651606,-273.45897779,0.00035,2]
[341158321,1730484651616,-1765.19,0.00035068,116]
[341158322,1730484651626,-1765.19,0.00035068,116]
[341158323,1730484651635,-1765.19,0.00035068,116]
[341158324,1730484651645,-1765.19,0.00035068,116]
[341158325,1730484651657,-1765.19,0.00035068,116]
[341158326,1730484651666,-1765.19,0.00035068,116]
[341158327,1730484651676,-1765.19,0.00035068,116]
[341158328,1730484651686,-500.0,0.00035071,4]
[341158329,1730484651695,-1331.61,0.00035071,4]
[341158330,1730484651704,-500.0,0.00035071,4]
[341158331,1730484651714,-500.0,0.00035071,4]
[341158332,1730484651723,-500.0,0.00035071,4]
[341158333,1730484651733,-8598.38,0.00035071,4]
[341158334,1730484651744,-500.0,0.00035071,4]
[341158335,1730484651754,-500.0,0.00035071,4]
[341158336,1730484651764,-10892.51,0.00035071,3]
[341158337,1730484651774,-500.0,0.00035071,4]
[341158338,1730484651783,-2060.84,0.00035071,4]
[341158339,1730484651792,-1102.64,0.00035071,4]
[341158340,1730484651802,-500.0,0.00035072,4]
[341158341,1730484651814,-605.0,0.00035072,4]
[341158342,1730484651826,-500.0,0.00035072,4]
[341158343,1730484651836,-500.0,0.00035072,4]
[341158344,1730484651846,-500.0,0.00035072,4]
[341158345,1730484651856,-1794.85,0.00035072,4]
[341158346,1730484651865,-500.0,0.00035072,4]
[341158347,1730484651875,-500.0,0.00035072,4]
[341158348,1730484651885,-8558.61,0.00035072,4]
[341158349,1730484651895,-500.0,0.00035072,4]
[341158350,1730484651904,-500.0,0.00035072,4]
[341158351,1730484651914,-2140.67,0.00035072,4]
[341158352,1730484651924,-1519.49,0.00035072,4]
[341158353,1730484651933,-1286.34,0.00035072,4]
[341158354,1730484651943,-1203.1,0.00035072,4]
[341158355,1730484651953,-216.3,0.00035073,4]
[341158356,1730484651961,-500.0,0.00035073,4]
[341158357,1730484651971,-486.58320218,0.00035073,4]
[341158358,1730484651981,-202.12973762,0.00035073,4]
[341158359,1730484651992,-500.0,0.00035073,4]
[341158360,1730484652002,-1601.74,0.00035073,4]
[341158361,1730484652012,-2786.23,0.00035073,120]
[341158362,1730484652021,-500.0,0.00035073,4]
[341158363,1730484652030,-500.0,0.00035073,4]
[341158364,1730484652040,-500.0,0.00035073,4]
[341158365,1730484652050,-1765.19,0.00035073,116]
[341158366,1730484652060,-263.58555448,0.00035073,4]
[341158367,1730484652070,-500.0,0.00035073,4]
[341158368,1730484652079,-500.0,0.00035073,4]
[341158369,1730484652089,-601.1,0.00035073,4]
[341158370,1730484652098,-1254.46,0.00035073,4]
[341158371,1730484652108,-500.0,0.00035073,4]
[341158372,1730484652117,-500.0,0.00035073,4]
[341158373,1730484652127,-500.0,0.00035073,4]
[341158374,1730484652136,-500.0,0.00035073,4]
[341158375,1730484652146,-500.0,0.00035073,4]
[341158376,1730484652156,-1410.65,0.00035073,4]
[341158377,1730484652165,-606.11,0.00035073,4]
[341158378,1730484652175,-500.0,0.00035073,4]
[341158379,1730484652184,-500.0,0.00035073,4]
[341158380,1730484652193,-500.0,0.00035073,4]
[341158381,1730484652202,-151.0,0.00035073,14]
[341158382,1730484652212,-500.0,0.00035073,4]
[341158383,1730484652222,-500.0,0.00035073,4]
[341158384,1730484652231,-500.0,0.00035073,4]
[341158385,1730484652242,-500.0,0.00035073,4]
[341158386,1730484652251,-500.0,0.00035073,4]
[341158387,1730484652261,-500.0,0.00035073,4]
[341158388,1730484652270,-500.0,0.00035073,4]
[341158389,1730484652280,-500.0,0.00035073,4]
[341158390,1730484652290,-542.7,0.00035073,4]
[341158391,1730484652300,-500.0,0.00035073,4]
[341158392,1730484652310,-500.89,0.00035074,4]
[341158393,1730484652320,-3434.74,0.00035074,4]
[341158394,1730484652330,-1378.35,0.00035074,4]
[341158395,1730484652340,-491.33,0.00035074,4]
[341158396,1730484652350,-1406.68,0.00035074,4]
[341158397,1730484652359,-775.55,0.00035074,4]
[341158398,1730484652370,-500.0,0.00035074,4]
[341158399,1730484652380,-500.0,0.00035075,4]
[341158400,1730484652389,-500.0,0.00035075,4]
[341158401,1730484652495,-500.0,0.00035076,4]
[341158402,1730484652504,-500.0,0.00035076,4]
[341158403,1730484652514,-686.42,0.00035076,4]
[341158404,1730484652524,-500.0,0.00035076,4]
[341158405,1730484652534,-500.0,0.00035076,4]
[341158406,1730484652544,-500.0,0.00035076,4]
[341158407,1730484652554,-500.0,0.00035076,4]
[341158408,1730484652563,-447.8338585,0.00035288,2]
[341158409,1730484652577,-262.56490718,0.00035308,2]
[341158410,1730484652588,-155.33210307,0.00035342,5]
[341158411,1730484652600,-500.0,0.00035345,4]
[341158412,1730484652612,-1331.61,0.00035345,4]
[341158413,1730484652622,-500.0,0.00035345,4]
[341158414,1730484652632,-500.0,0.00035345,4]
[341158415,1730484652644,-500.0,0.00035345,4]
[341158416,1730484652654,-8544.01793791,0.00035345,4]
[341158417,1730484652668,-54.36206209,0.00035345,4]
[341158418,1730484652678,-500.0,0.00035345,4]
[341158419,1730484652689,-141.53793791,0.00035345,3]
[341158420,1730484653822,165.701828,0.00013973,2]
[341158433,1730485607132,-481.5681113,0.00031091,2]
[341158434,1730485607154,-158.7912028,0.00031098,2]
[341158445,1730485647665,171.224875,0.00013973,2]
[341158493,1730485770098,-4305.1575366,0.0002066,7]
[341158518,1730485832756,-239.473658,0.00030719,2]
[341158519,1730485832766,-239.473658,0.00031404,2]
[341158520,1730485832779,-239.473658,0.00032089,2]
[341158521,1730485832790,-1383.554568,0.00032877,120]
[341158522,1730485832802,-212.26878773,0.00033052,2]
[341158523,1730485832813,-400.0,0.00033147,2]
[341158524,1730485832823,-500.0,0.00033148,4]
[341158525,1730485832834,-1112.69,0.00033148,4]
[341158526,1730485832843,-500.0,0.00033148,4]
[341158527,1730485832853,-500.0,0.00033148,4]
[341158528,1730485832872,-500.0,0.00033148,4]
[341158529,1730485832883,-5537.16,0.00033148,4]
[341158530,1730485832893,-500.0,0.00033148,4]
[341158531,1730485832903,-500.0,0.00033148,4]
[341158532,1730485832914,-7255.78,0.00033148,3]
[341158533,1730485832924,-500.0,0.00033148,4]
[341158534,1730485832934,-1888.17,0.00033148,4]
[341158535,1730485832946,-928.95,0.00033148,4]
[341158536,1730485832957,-500.0,0.00033149,4]
[341158537,1730485832966,-500.0,0.00033149,4]
[341158538,1730485832976,-500.0,0.00033149,4]
[341158539,1730485832986,-583.9,0.00033149,4]
[341158540,1730485832995,-500.0,0.00033149,4]
[341158541,1730485833005,-500.0,0.00033149,4]
[341158542,1730485833015,-500.0,0.00033149,4]
[341158543,1730485833025,-500.0,0.00033149,4]
[341158544,1730485833035,-500.0,0.00033149,4]
[341158545,1730485833046,-1196.56,0.00033149,4]
[341158546,1730485833056,-500.0,0.00033149,4]
[341158547,1730485833066,-5705.74,0.00033149,4]
[341158548,1730485833076,-500.0,0.00033149,4]
[341158549,1730485833086,-500.0,0.00033149,4]
[341158550,1730485833096,-1575.4,0.00033149,4]
[341158551,1730485833106,-500.0,0.00033149,4]
[341158552,1730485833115,-1131.85,0.00033149,4]
[341158553,1730485833125,-1186.39,0.00033149,4]
[341158554,1730485833136,-500.0,0.0003315,4]
[341158555,1730485833146,-500.0,0.0003315,4]
[341158556,1730485833156,-500.0,0.0003315,4]
[341158557,1730485833166,-500.0,0.0003315,4]
[341158558,1730485833176,-500.0,0.0003315,4]
[341158559,1730485833187,-500.0,0.0003315,4]
[341158560,1730485833202,-500.0,0.0003315,4]
[341158561,1730485833211,-500.0,0.0003315,4]
[341158562,1730485833222,-500.0,0.0003315,2]
[341158563,1730485833232,-500.0,0.0003315,4]
[341158564,1730485833242,-1857.48,0.0003315,120]
[341158565,1730485833253,-500.0,0.0003315,4]
[341158566,1730485833263,-1192.83,0.0003315,4]
[341158567,1730485833274,-500.0,0.0003315,4]
[341158568,1730485833287,-500.0,0.0003315,4]
[341158569,1730485833296,-500.0,0.0003315,4]
[341158570,1730485833306,-228.4432777,0.0003315,4]
[341158571,1730485833316,-500.0,0.0003315,4]
[341158572,1730485833326,-802.07,0.0003315,4]
[341158573,1730485833338,-565.71,0.0003315,4]
[341158574,1730485833348,-500.0,0.0003315,4]
[341158575,1730485833357,-500.0,0.0003315,4]
[341158576,1730485833368,-500.0,0.0003315,4]
[341158577,1730485833378,-1136.03,0.0003315,4]
[341158578,1730485833388,-1155.99,0.0003315,4]
[341158579,1730485833398,-592.3,0.0003315,4]
[341158580,1730485833408,-500.0,0.0003315,4]
[341158581,1730485833420,-500.0,0.0003315,4]
[341158582,1730485833429,-500.0,0.0003315,4]
[341158583,1730485833440,-500.0,0.0003315,4]
[341158584,1730485833449,-500.0,0.0003315,4]
[341158585,1730485833460,-500.0,0.0003315,4]
[341158586,1730485833470,-500.0,0.0003315,4]
[341158587,1730485833479,-500.0,0.0003315,4]
[341158588,1730485833492,-500.0,0.0003315,4]
[341158589,1730485833503,-500.0,0.0003315,4]
[341158590,1730485833513,-500.0,0.00033151,4]
[341158591,1730485833523,-500.0,0.00033151,4]
[341158592,1730485833533,-500.0,0.00033151,4]
[341158593,1730485833543,-500.0,0.00033151,4]
[341158594,1730485833554,-500.0,0.00033151,4]
[341158595,1730485833564,-500.0,0.00033151,4]
[341158596,1730485833574,-500.0,0.00033151,4]
[341158597,1730485833584,-500.0,0.00033151,4]
[341158598,1730485833594,-500.0,0.00033151,4]
[341158599,1730485833605,-500.0,0.00033151,4]
[341158600,1730485833615,-379.478372,0.00033151,4]
[341158634,1730485840832,-120.521628,0.00033151,4]
[341158637,1730485840842,-500.0,0.00033151,4]
[341158639,1730485840852,-489.17190031,0.00033151,4]
[341158641,1730485840862,-500.0,0.00033151,4]
[341158643,1730485840872,-500.0,0.00033151,4]
[341158645,1730485840881,-500.0,0.00033151,4]
[341158647,1730485840890,-500.0,0.00033151,4]
[341158649,1730485840900,-500.0,0.00033151,4]
[341158651,1730485840909,-500.0,0.00033151,4]
[341158653,1730485840918,-500.0,0.00033151,4]
[341158655,1730485840927,-500.0,0.00033151,4]
[341158657,1730485840936,-500.0,0.00033152,4]
[341158659,1730485840946,-500.0,0.00033152,4]
[341158661,1730485840955,-2414.83,0.00033152,4]
[341158663,1730485840965,-918.9,0.00033152,4]
[341158665,1730485840979,-500.0,0.00033152,4]
[341158667,1730485840988,-1133.24,0.00033152,4]
[341158669,1730485840998,-517.03,0.00033152,4]
[341158671,1730485841008,-500.0,0.00033152,4]
[341158673,1730485841017,-500.0,0.00033152,4]
[341158675,1730485841027,-150.0,0.00033209,2]
[341158677,1730485841037,-3037.16029843,0.00033209,2]
[341158679,1730485841049,-2000.0,0.00033209,2]
[341158682,1730485841059,-300.0,0.00033209,2]
[341158684,1730485841071,-797.09530965,0.00033209,2]
[341158686,1730485841082,-516.52021689,0.00033209,2]
[341158688,1730485841094,-292.31303286,0.00033209,2]
[341158691,1730485841106,-4169.73844413,0.00033209,2]
[341158693,1730485841117,-321.90059467,0.00033209,2]
[341158695,1730485841128,-338.56332154,0.00033209,2]
[341158697,1730485841139,-287.2207308,0.00033209,2]
[341158699,1730485841150,-1190.80297997,0.00033209,2]
[341158702,1730485841161,-163.97669084,0.00033209,2]
[341158704,1730485841172,-4140.06714311,0.00033209,2]
[341158706,1730485841185,-1190.1889633,0.00033209,2]
[341158708,1730485841196,-155.01326907,0.00033209,2]
[341158710,1730485841208,-517.74830657,0.00033209,2]
[341158712,1730485841217,-439.1245068,0.00033209,2]
[341158714,1730485841228,-224.30527772,0.00033209,2]
[341158716,1730485841237,-1023.14608424,0.00033209,2]
[341158718,1730485841248,-1836.43997214,0.00033209,2]
[341158719,1730485841258,-908.99701276,0.00033209,2]
[341158720,1730485841267,-3068.55908724,0.00033209,2]
[341158721,1730485841277,-460.66091302,0.00033209,2]
[341158722,1730485841286,-176.26172522,0.00033209,2]
[341158723,1730485841296,-834.4476166,0.00033209,2]
[341158724,1730485841306,-227.3701371,0.00033209,2]
[341158725,1730485841315,-886.319,0.00033209,2]
[341158726,1730485841325,-1887.79416543,0.00033209,2]
[341158727,1730485841334,-221.80220021,0.00033209,2]
[341158728,1730485841343,-200.0,0.00033209,2]
[341158729,1730485841353,-4414.32174372,0.00033209,2]
[341158730,1730485841362,-186.47205072,0.00033209,2]
[341158731,1730485841374,-159.84388264,0.00033209,2]
[341158732,1730485841384,-490.60242121,0.00033421,7]
[341158733,1730485841395,-500.0,0.00033422,4]
[341158734,1730485841406,-1112.69,0.00033422,4]
[341158735,1730485841418,-500.0,0.00033422,4]
[341158736,1730485841428,-500.0,0.00033422,4]
[341158737,1730485841440,-500.0,0.00033422,4]
[341158738,1730485841450,-5537.16,0.00033422,4]
[341158739,1730485841460,-500.0,0.00033422,4]
[341158740,1730485841470,-599.16105801,0.00033422,4]
[341158741,1730485841480,-7255.78,0.00033422,3]
[341158742,1730485841489,-500.0,0.00033422,4]
[341158743,1730485841499,-1888.17,0.00033422,4]
[341158744,1730485841508,-928.95,0.00033422,4]
[341158745,1730485841518,-500.0,0.00033423,4]
[341158746,1730485841526,-500.0,0.00033423,4]
[341158747,1730485841536,-500.0,0.00033423,4]
[341158748,1730485841545,-583.9,0.00033423,4]
[341158749,1730485841554,-500.0,0.00033423,4]
[341158750,1730485841564,-500.0,0.00033423,4]
[341158751,1730485841573,-500.0,0.00033423,4]
[341158752,1730485841582,-500.0,0.00033423,4]
[341158753,1730485841592,-500.0,0.00033423,4]
[341158754,1730485841601,-1196.56,0.00033423,4]
[341158755,1730485841611,-500.0,0.00033423,4]
[341158756,1730485841620,-5705.74,0.00033423,4]
[341158757,1730485841630,-500.0,0.00033423,4]
[341158758,1730485841642,-500.0,0.00033423,4]
[341158759,1730485841654,-1575.4,0.00033423,4]
[341158760,1730485841664,-500.0,0.00033423,4]
[341158761,1730485841673,-1131.85,0.00033423,4]
[341158762,1730485841683,-1186.39,0.00033423,4]
[341158763,1730485841692,-503.07432807,0.00033424,4]
[341158764,1730485841701,-500.0,0.00033424,4]
[341158765,1730485841712,-500.0,0.00033424,4]
[341158766,1730485841723,-500.0,0.00033424,4]
[341158767,1730485841732,-500.0,0.00033424,4]
[341158768,1730485841742,-500.0,0.00033424,4]
[341158769,1730485841752,-500.0,0.00033424,4]
[341158770,1730485841763,-500.0,0.00033424,4]